fUST/lending_fUST_20250408
["ID","MTS","AMOUNT","RATE_DAILY","PERIOD"]
[357519496,1744114240061,-151.0,0.00031136,7]
[357519497,1744114240071,-151.0,0.00031136,7]
[357519498,1744114240080,-151.0,0.00031136,7]
[357519499,1744114240089,-151.0,0.00031136,7]
[357519500,1744114240099,-1622.289164,0.00031136,2]
[357519501,1744114240108,-1622.289164,0.00031136,2]
[357519502,1744114240117,-151.0,0.00031136,7]
[357519503,1744114240127,-151.0,0.00031136,7]
[357519504,1744114240136,-244.76912121,0.00031136,7]
[357519505,1744114240146,-151.0,0.00031146,7]
[357519506,1744114240155,-152.26,0.00031148,2]
[357519507,1744114240165,-151.0,0.00031149,7]
[357519508,1744114240175,-151.0,0.00031149,7]
[357519509,1744114240185,-1000.0,0.00031161,2]
[357519510,1744114240194,-1000.0,0.00031161,2]
[357519511,1744114240203,-1000.0,0.00031161,2]
[357519512,1744114240212,-1000.0,0.00031161,2]
[357519513,1744114240222,-172.91450319,0.00031161,2]
[357519515,1744114240232,-339.74488891,0.00031173,5]
[357519517,1744114240241,-476.10232292,0.00031173,5]
[357519518,1744114240251,-500.0,0.00031173,2]
[357519519,1744114240261,-500.0,0.00031173,5]
[357519520,1744114240271,-500.0,0.00031173,5]
[357519521,1744114240281,-500.0,0.00031173,5]
[357519522,1744114240290,-500.0,0.00031173,5]
[357519523,1744114240299,-500.0,0.00031173,5]
[357519524,1744114240310,-500.0,0.00031173,5]
[357519525,1744114240319,-420.0,0.00031296,2]
[357519526,1744114240334,-3746.25774077,0.000319,10]
[357519528,1744114240345,-583.71659921,0.00032176,2]
[357519530,1744114240354,-1641.81742486,0.00032415,2]
[357519531,1744114240363,-2438.56,0.00032483,3]
[357519533,1744114240373,-2032.12,0.00032483,3]
[357519534,1744114240393,-500.0,0.0003318,5]
[357519535,1744114240404,-583.71659921,0.00033317,2]
[357519536,1744114240414,-300.0,0.00033764,2]
[357519537,1744114240424,-500.0,0.0003382,5]
[357519538,1744114240435,-500.0,0.0003382,5]
[357519539,1744114240445,-500.0,0.0003382,5]
[357519540,1744114240454,-500.0,0.0003382,5]
[357519541,1744114240464,-500.0,0.0003382,2]
[357519542,1744114240473,-3746.25774077,0.000339,11]
[357519543,1744114240483,-583.71659921,0.00034459,2]
[357519544,1744114240492,-673.5,0.00035223,30]
[357519545,1744114240502,-583.71659921,0.000356,2]
[357519546,1744114240512,-500.0,0.00035673,5]
[357519547,1744114240521,-200.84379062,0.0003569,3]
[357519548,1744114240531,-216046.22,0.000357,30]
[357519549,1744114240540,-755.08,0.000357,7]
[357519550,1744114240549,-231.588604,0.000357,14]
[357519551,1744114240559,-199.100014,0.000357,14]
[357519552,1744114240568,-151.0,0.000357,14]
[357519553,1744114240578,-151.0,0.000357,14]
[357519554,1744114240587,-164.17645,0.000357,14]
[357519555,1744114240596,-164.17645,0.000357,14]
[357519556,1744114240606,-151.0,0.000357,14]
[357519557,1744114240615,-151.0,0.000357,14]
[357519558,1744114240625,-151.0,0.000357,14]
[357519559,1744114240634,-1622.289164,0.000357,2]
[357519560,1744114240643,-1622.289164,0.000357,2]
[357519561,1744114240652,-151.0,0.000357,14]
[357519562,1744114240662,-151.0,0.000357,14]
[357519563,1744114240671,-151.0,0.000357,3]
[357519564,1744114240681,-200.0,0.000357,3]
[357519565,1744114240691,-1641.81742486,0.00035796,2]
[357519566,1744114240700,-337.811538,0.0003589,2]
[357519567,1744114240709,-3746.25774077,0.000359,12]
[357519568,1744114240719,-290.08,0.00036,2]
[357519569,1744114240729,-180.01080065,0.00036061,15]
[357519570,1744114240738,-1900.25853562,0.000362,98]
[357519571,1744114240747,-1900.25853558,0.000362,98]
[357519572,1744114240756,-1000.0,0.00036652,2]
[357519573,1744114240765,-1000.0,0.00036652,5]
[357519574,1744114240774,-1000.0,0.00036652,5]
[357519575,1744114240783,-1000.0,0.00036652,5]
[357519576,1744114240793,-1000.0,0.00036652,5]
[357519577,1744114240802,-797.5456102,0.00037,120]
[357519578,1744114240811,-3746.25774077,0.000379,14]
[357519579,1744114240820,-161.756,0.000383,51]
[357519580,1744114240832,-500.0,0.00038659,5]
[357519581,1744114240842,-500.0,0.00038786,5]
[357519582,1744114240851,-290.48742975,0.00038889,5]
[357519583,1744114240861,-500.0,0.00039,5]
[357519584,1744114240870,-1641.81742486,0.00039177,2]
[357519585,1744114240880,-500.0,0.00039299,2]
[357519586,1744114240889,-1000.0,0.000395,32]
[357519587,1744114240898,-2000.0,0.00039693,4]
[357519588,1744114240910,-2699.87,0.000397,30]
[357519589,1744114240919,-151.0,0.000397,14]
[357519591,1744114240928,-154.890574,0.000397,14]
[357519592,1744114240937,-151.0,0.000397,14]
[357519593,1744114240947,-151.0,0.000397,14]
[357519594,1744114240956,-151.0,0.000397,14]
[357519595,1744114240966,-151.0,0.000397,14]
[357519596,1744114240976,-151.0,0.000397,14]
[357519597,1744114240985,-151.0,0.000397,14]
[357519598,1744114240994,-151.0,0.000397,14]
[357519599,1744114241008,-151.0,0.000397,14]
[357519600,1744114241017,-500.0,0.00039705,7]
[357519601,1744114241027,-1300.0,0.00039735,7]
[357519602,1744114241039,-501.48614492,0.00039773,5]
[357519603,1744114241048,-151.0,0.00039773,14]
[357519604,1744114241057,-151.0,0.00039773,14]
[357519605,1744114241067,-837.41003169,0.0003979,3]
[357519606,1744114241080,-151.0,0.0003979,14]
[357519607,1744114241090,-151.0,0.0003979,14]
[357519608,1744114241099,-151.0,0.0003979,2]
[357519609,1744114241109,-252660.18671332,0.000398,120]
[357519610,1744114241124,-175226.85467178,0.000398,120]
[357519611,1744114241134,-781.65,0.000398,30]
[357519612,1744114241143,-419.46366559,0.000398,30]
[357519613,1744114241297,-2361.62,0.000398,30]
[357519614,1744114241307,-151.0,0.000398,14]
[357519615,1744114241316,-201.322931,0.000398,14]
[357519616,1744114241327,-2000.0,0.000398,120]
[357519617,1744114241337,-151.0,0.000398,14]
[357519618,1744114241348,-151.0,0.000398,14]
[357519619,1744114241357,-151.0,0.000398,14]
[357519620,1744114241366,-209.315657,0.000398,14]
[357519621,1744114241375,-240.64142,0.000398,14]
[357519622,1744114241384,-151.0,0.000398,14]
[357519623,1744114241393,-151.0,0.000398,14]
[357519624,1744114241402,-152.62,0.000398,31]
[357519625,1744114241411,-152.62,0.000398,31]
[357519626,1744114241420,-152.62,0.000398,31]
[357519627,1744114241429,-152.62,0.000398,31]
[357519628,1744114241439,-152.62,0.000398,31]
[357519629,1744114241448,-152.62,0.000398,31]
[357519630,1744114241457,-152.62,0.000398,31]
[357519631,1744114241466,-151.0,0.000398,14]
[357519632,1744114241476,-164.17645,0.000398,14]
[357519633,1744114241485,-164.17645,0.000398,14]
[357519634,1744114241494,-151.0,0.000398,14]
[357519635,1744114241503,-151.0,0.000398,14]
[357519636,1744114241512,-151.0,0.000398,14]
[357519637,1744114241522,-1622.289164,0.000398,2]
[357519638,1744114241532,-1622.289164,0.000398,2]
[357519639,1744114241542,-151.0,0.000398,14]
[357519640,1744114241551,-151.0,0.000398,14]
[357519641,1744114241561,-151.0,0.000398,14]
[357519642,1744114241572,-151.0,0.000398,14]
[357519643,1744114241582,-1300.0,0.00039808,7]
[357519644,1744114241594,-1312.8876234,0.00039858,4]
[357519645,1744114241603,-3746.25774077,0.000399,15]
[357519646,1744114241613,-244.80676883,0.00039999,2]
[357519647,1744114241622,-151.0,0.00039999,2]
[357519648,1744114241632,-200.0,0.0004,120]
[357519649,1744114241641,-300.0,0.0004,14]
[357519650,1744114241651,-508.99062487,0.0004,120]
[357519651,1744114241661,-500.0,0.0004,120]
[357519652,1744114241670,-450.815,0.0004,120]
[357519653,1744114241680,-500.0,0.0004,120]
[357519654,1744114241690,-239.64226458,0.0004,120]
[357519655,1744114241699,-253.96,0.0004,120]
[357519656,1744114241709,-1000.0,0.0004,32]
[357519657,1744114241718,-1300.0,0.00040012,30]
[357519658,1744114241727,-1300.0,0.00040054,30]
[357519659,1744114241737,-500.0,0.00040091,120]
[357519660,1744114241747,-356.9,0.00040091,120]
[357519661,1744114241756,-500.0,0.00040143,30]
[357519662,1744114241765,-500.0,0.00040214,30]
[357519663,1744114241775,-500.0,0.0004023,30]
[357519664,1744114241784,-1300.0,0.00040255,30]
[357519665,1744114241793,-500.0,0.00040266,30]
[357519666,1744114241803,-500.0,0.00040348,30]
[357519667,1744114241812,-500.0,0.00040408,30]
[357519668,1744114241824,-500.0,0.00040415,5]
[357519669,1744114241835,-200.16141026,0.00040415,5]
[357519670,1744114241845,-548.25653253,0.00040415,5]
[357519671,1744114241856,-500.0,0.00040415,5]
[357519672,1744114241866,-500.0,0.00040415,5]
[357519673,1744114241877,-500.0,0.00040415,5]
[357519674,1744114241886,-500.0,0.00040478,30]
[357519675,1744114241896,-500.0,0.0004049,30]
[357519676,1744114241906,-178.76028714,0.00040548,30]
[357519677,1744114241915,-500.0,0.00040548,22]
[357519678,1744114241927,-170.84779635,0.00040548,30]
[357519679,1744114241937,-166.62260395,0.00040548,30]
[357519680,1744114241946,-150.44238954,0.00040548,30]
[357519681,1744114241956,-160.0299523,0.00040548,30]
[357519682,1744114241965,-150.21865068,0.00040548,30]
[357519683,1744114241974,-500.0,0.00040548,30]
[357519684,1744114241983,-500.0,0.00040548,30]
[357519685,1744114241993,-154.02497516,0.00040548,30]
[357519686,1744114242002,-500.0,0.00040548,30]
[357519687,1744114242012,-500.0,0.00040548,30]
[357519688,1744114242021,-299.91,0.00040548,30]
[357519689,1744114242030,-500.0,0.00040584,30]
[357519690,1744114242040,-500.0,0.00040735,30]
[357519691,1744114242049,-1900.25853558,0.00040804,120]
[357519692,1744114242058,-500.0,0.00040811,30]
[357519693,1744114242067,-216.93849645,0.00040816,7]
[357519694,1744114242078,-800.0,0.00040851,7]
[357519695,1744114242087,-800.0,0.00040856,7]
[357519696,1744114242096,-800.0,0.00040868,7]
[357519697,1744114242106,-800.0,0.00040872,7]
[357519698,1744114242115,-800.0,0.0004088,7]
[357519699,1744114242124,-1300.0,0.00040891,30]
[357519700,1744114242133,-800.0,0.00040902,7]
[357519701,1744114242143,-500.0,0.0004091,30]
[357519702,1744114242152,-800.0,0.00040926,7]
[357519703,1744114242162,-419.46366559,0.00040934,7]
[357519704,1744114242172,-800.0,0.00040935,7]
[357519705,1744114242181,-800.0,0.00040946,7]
[357519706,1744114242190,-800.0,0.0004095,7]
[357519707,1744114242200,-800.0,0.0004095,7]
[357519708,1744114242209,-800.0,0.00040957,7]
[357519709,1744114242219,-800.0,0.00040971,7]
[357519710,1744114242228,-500.0,0.0004098,30]
[357519711,1744114242238,-1000.0,0.00041,120]
[357519712,1744114242248,-1000.0,0.00041,120]
[357519713,1744114242257,-1000.0,0.00041,120]
[357519714,1744114242267,-1000.0,0.00041,120]
[357519715,1744114242276,-1000.0,0.00041,120]
[357519716,1744114242286,-1000.0,0.00041,120]
[357519717,1744114242295,-1000.0,0.00041,120]
[357519718,1744114242305,-1000.0,0.00041,120]
[357519719,1744114242315,-1000.0,0.00041,120]
[357519720,1744114242325,-1000.0,0.00041,120]
[357519721,1744114242335,-1000.0,0.00041,120]
[357519722,1744114242344,-1000.0,0.00041,120]
[357519723,1744114242354,-1000.0,0.00041,120]
[357519724,1744114242363,-1000.0,0.00041,120]
[357519725,1744114242372,-1000.0,0.00041,120]
[357519726,1744114242381,-1000.0,0.00041,120]
[357519727,1744114242390,-1000.0,0.00041,120]
[357519728,1744114242400,-1000.0,0.00041,120]
[357519729,1744114242410,-1000.0,0.00041,120]
[357519730,1744114242419,-349.21355377,0.00041,120]
[357519731,1744114242428,-155.0,0.00041,14]
[357519732,1744114242437,-161.0,0.00041,14]
[357519733,1744114242446,-800.0,0.00041008,7]
[357519734,1744114242455,-800.0,0.00041018,7]
[357519735,1744114242464,-800.0,0.00041035,7]
[357519736,1744114242474,-800.0,0.00041035,7]
[357519737,1744114242483,-800.0,0.00041059,7]
[357519738,1744114242497,-800.0,0.00041064,7]
[357519739,1744114242510,-800.0,0.00041067,7]
[357519740,1744114242524,-800.0,0.00041067,7]
[357519741,1744114242537,-819.0,0.0004107,120]
[357519742,1744114242549,-160.0,0.00041073,2]
[357519743,1744114242561,-160.0,0.00041073,5]
[357519744,1744114242573,-500.0,0.00041073,5]
[357519745,1744114242585,-500.0,0.00041073,5]
[357519746,1744114242598,-500.0,0.00041073,5]
[357519747,1744114242610,-502.24471079,0.00041073,5]
[357519748,1744114242623,-500.0,0.00041073,5]
[357519749,1744114242635,-500.0,0.00041073,5]
[357519750,1744114242647,-500.0,0.00041073,5]
[357519751,1744114242659,-500.0,0.00041073,5]
[357519752,1744114242671,-433.57303607,0.00041073,5]
[357519753,1744114242683,-500.0,0.00041073,5]
[357519754,1744114242696,-500.0,0.00041073,5]
[357519755,1744114242708,-819.0,0.0004108,120]
[357519756,1744114242719,-819.0,0.0004109,120]
[357519757,1744114242730,-501.27105266,0.00041091,15]
[357519758,1744114242743,-500.0,0.00041091,15]
[357519759,1744114242754,-653.37867484,0.00041096,22]
[357519760,1744114242765,-500.0,0.00041096,30]
[357519761,1744114242778,-500.0,0.00041096,30]
[357519762,1744114242790,-500.0,0.00041096,30]
[357519763,1744114242802,-500.0,0.00041096,30]
[357519764,1744114242815,-216046.22,0.000411,30]
[357519765,1744114242828,-755.08,0.000411,30]
[357519766,1744114242843,-229.15009,0.000411,30]
[357519767,1744114242855,-151.0,0.000411,120]
[357519768,1744114242868,-151.0,0.000411,120]
[357519769,1744114242880,-151.0,0.000411,120]
[357519770,1744114242893,-151.0,0.000411,120]
[357519771,1744114242905,-151.0,0.000411,120]
[357519772,1744114242918,-151.0,0.000411,30]
[357519773,1744114242932,-164.17645,0.000411,120]
[357519774,1744114242944,-164.17645,0.000411,120]
[357519775,1744114242957,-246.432372,0.000411,120]
[357519776,1744114242970,-151.0,0.000411,120]
[357519777,1744114242982,-151.0,0.000411,120]
[357519778,1744114242995,-1622.289164,0.000411,2]
[357519779,1744114243006,-1622.289164,0.000411,2]
[357519780,1744114243017,-151.0,0.000411,120]
[357519781,1744114243027,-151.0,0.000411,120]
[357519782,1744114243037,-151.0,0.000411,120]
[357519783,1744114243048,-151.0,0.000411,120]
[357519784,1744114243060,-337.811538,0.00041211,120]
[357519785,1744114243075,-500.0,0.00041218,30]
[357519786,1744114243088,-153.798,0.00041311,2]
[357519787,1744114243098,-543.0,0.00041311,2]
[357519788,1744114243108,-706.0,0.00041311,2]
[357519789,1744114243119,-2255.0,0.00041311,2]
[357519790,1744114243130,-11659.38884472,0.00041382,2]
[357519791,1744114243142,-500.0,0.00041402,30]
[357519792,1744114243154,-500.0,0.00041607,30]
[357519793,1744114243165,-2200.0,0.0004163,14]
[357519795,1744114243175,-500.0,0.00041644,30]
[357519797,1744114243184,-500.0,0.00041644,30]
[357519799,1744114243195,-500.0,0.00041644,30]
[357519801,1744114243206,-500.0,0.00041644,30]
[357519803,1744114243216,-200.0,0.00041644,30]
[357519806,1744114243226,-1300.0,0.00041663,30]
[357519808,1744114243237,-500.0,0.00041671,30]
[357519810,1744114243248,-500.0,0.00041673,10]
[357519814,1744114243258,-500.73757329,0.00041673,10]
[357519816,1744114243268,-500.0,0.00041673,10]
[357519818,1744114243279,-1300.0,0.00041718,30]
[357519820,1744114243291,-819.0,0.0004177,120]
[357519822,1744114243301,-500.0,0.00041771,30]
[357519824,1744114243312,-819.0,0.0004178,120]
[357519826,1744114243322,-819.0,0.0004179,120]
[357519828,1744114243332,-7539.64605535,0.00041799,3]
[357519830,1744114243342,-26796.50365877,0.000418,2]
[357519832,1744114243353,-19121.62686592,0.000418,14]
[357519834,1744114243363,-344860.48892928,0.000418,120]
[357519860,1744114243799,-617.0,0.00035223,30]
[357519861,1744114243809,-244.80676883,0.00039999,2]
[357519862,1744114243819,-234.01777134,0.00039999,2]
[357519863,1744114243830,-14565.74276726,0.000418,120]
[357519915,1744114466025,254.21044309,0.00025,120]
[357519917,1744114948524,259.08018643,0.000201,9]
[357519922,1744115230133,-5851.19837573,0.0002,2]
[357519925,1744115319364,6003.48788126,0.00019,20]
[357519926,1744115320715,22737.43193231,0.0002,20]
[357519927,1744115321886,29000.0,0.000175,4]
[357519928,1744115321918,1717.53499558,0.000175,4]
[357519938,1744115347100,-300.0,0.00019999,2]
[357519939,1744115347126,-105.80162427,0.0002,2]
[357519940,1744115347156,-10789.44192283,0.0002,20]
[357519941,1744115347181,-420.0,0.00021777,2]
[357519942,1744115347202,-189.10929876,0.00023,2]
[357519943,1744115347228,-587.0,0.00023712,2]
[357519944,1744115347249,-661.49852,0.00024182,2]
[357519945,1744115347270,-250.0,0.00024514,2]
[357519946,1744115347478,-6441.3816666,0.00024778,2]
[357519947,1744115347500,-160.0,0.00024861,2]
[357519948,1744115347522,-300.0,0.00024997,2]
[357519949,1744115347545,-646.79236041,0.00025,2]
[357519950,1744115347568,-991.02219888,0.00025,2]
[357519951,1744115347590,-1142.98024386,0.00025,2]
[357519952,1744115347611,-823.0,0.0002582,2]
[357519953,1744115347633,-1159.00443331,0.000259,6]
[357519966,1744115432623,-553.83063043,0.000259,6]
[357519967,1744115432635,-475.9,0.000259,6]
[357519968,1744115432678,-426.18,0.000259,6]
[357519969,1744115432691,-881.59216123,0.000259,6]
[357519970,1744115432700,-300.0,0.00026407,2]
[357519971,1744115432710,-2506.01005726,0.00026408,2]
[357519972,1744115432722,-22393.98994274,0.00026408,2]
[357519973,1744115432733,-500.0,0.00026473,2]
[357519974,1744115432742,-304.80829648,0.00026473,2]
[357519975,1744115432752,-500.0,0.00026473,2]
[357519976,1744115432761,-500.0,0.00026473,2]
[357519977,1744115432770,-500.0,0.00026473,2]
[357519978,1744115432780,-500.0,0.00026473,2]
[357519979,1744115432789,-152.26,0.0002648,2]
[357519980,1744115432798,-50000.0,0.0002648,2]
[357519981,1744115432808,-304.96818093,0.0002658,2]
[357519982,1744115432818,-837.41003169,0.00026934,2]
[357519983,1744115432827,-416.53630338,0.00026934,2]
[357519984,1744115432837,-204.37,0.00027062,2]
[357519985,1744115432846,-3496.50722471,0.00028038,7]
[357519986,1744115432855,-420.0,0.00028567,2]
[357519987,1744115432866,-178.309589,0.00028676,2]
[357519988,1744115432876,-821.40462083,0.00028879,2]
[357519989,1744115432886,-821.40462081,0.00028886,2]
[357519990,1744115432896,-821.40462081,0.00028894,2]
[357519991,1744115432906,-821.40462081,0.00028901,2]
[357519992,1744115432916,-821.40462081,0.00028908,2]
[357519993,1744115432926,-492.22199676,0.00028973,5]
[357519994,1744115432936,-500.0,0.00028979,2]
[357519995,1744115432945,-500.0,0.00028979,2]
[357519996,1744115432955,-500.0,0.00028979,2]
[357519997,1744115432964,-455.7563365,0.00028979,2]
[357519998,1744115432975,-500.0,0.00028979,2]
[357519999,1744115432984,-500.0,0.00028979,2]
[357520000,1744115432994,-1580.27032935,0.00028979,2]
[357520001,1744115433004,-500.0,0.00028979,2]
[357520002,1744115433013,-500.0,0.00028979,2]
[357520003,1744115433024,-500.0,0.00028979,2]
[357520004,1744115433034,-1580.27032935,0.00028979,2]
[357520005,1744115433044,-500.0,0.00028979,2]
[357520006,1744115433055,-500.0,0.00028979,2]
[357520007,1744115433065,-500.0,0.00028979,2]
[357520008,1744115433076,-500.0,0.00028979,2]
[357520009,1744115433086,-1580.27032935,0.00028979,2]
[357520010,1744115433095,-500.0,0.00028979,2]
[357520011,1744115433105,-500.0,0.00028979,2]
[357520012,1744115433117,-500.0,0.00028979,2]
[357520013,1744115433127,-500.0,0.00028979,2]
[357520014,1744115433137,-1580.27032935,0.00028979,2]
[357520015,1744115433147,-608.35220024,0.00028979,2]
[357520016,1744115433159,-500.0,0.00028979,2]
[357520017,1744115433171,-1580.27032935,0.00028979,2]
[357520018,1744115433182,-500.0,0.00028979,2]
[357520019,1744115433192,-500.0,0.00028979,2]
[357520020,1744115433204,-1580.27032935,0.00028979,2]
[357520021,1744115433214,-500.0,0.00028979,2]
[357520022,1744115433224,-500.0,0.00028979,2]
[357520023,1744115433235,-500.0,0.00028979,2]
[357520024,1744115433247,-500.0,0.00028979,2]
[357520025,1744115433260,-1580.27032935,0.00028979,2]
[357520026,1744115433270,-500.0,0.00028979,2]
[357520027,1744115433281,-500.0,0.00028979,2]
[357520028,1744115433292,-500.0,0.00028979,2]
[357520029,1744115433302,-1580.27032935,0.00028979,2]
[357520030,1744115433312,-500.0,0.00028979,2]
[357520031,1744115433322,-1580.27032935,0.00028979,2]
[357520032,1744115433333,-500.0,0.00028979,2]
[357520033,1744115433344,-1580.27032935,0.00028979,2]
[357520034,1744115433355,-500.0,0.00028979,2]
[357520035,1744115433368,-500.0,0.00028979,2]
[357520036,1744115433379,-1580.27032935,0.00028979,2]
[357520037,1744115433389,-500.0,0.00028979,2]
[357520038,1744115433400,-1580.27032935,0.00028979,2]
[357520039,1744115433410,-500.0,0.00028979,2]
[357520040,1744115433420,-500.0,0.00028979,2]
[357520041,1744115433430,-1580.27032935,0.00028979,2]
[357520042,1744115433441,-500.0,0.00028979,2]
[357520043,1744115433451,-1580.27032935,0.00028979,2]
[357520044,1744115433461,-500.0,0.00028979,2]
[357520045,1744115433472,-1580.27032935,0.00028979,2]
[357520046,1744115433482,-500.0,0.00028979,2]
[357520047,1744115433493,-1580.27032935,0.00028979,2]
[357520048,1744115433502,-500.0,0.00028979,2]
[357520049,1744115433512,-350.0,0.00028979,2]
[357520050,1744115433522,-1580.27032935,0.00028979,2]
[357520051,1744115433531,-500.0,0.00028979,2]
[357520052,1744115433541,-1580.27032935,0.00028979,2]
[357520053,1744115433550,-500.0,0.00028979,2]
[357520054,1744115433569,-1580.27032935,0.00028979,2]
[357520055,1744115433581,-500.0,0.00028979,2]
[357520056,1744115433591,-1580.27032935,0.00028979,2]
[357520057,1744115433601,-500.0,0.00028979,2]
[357520058,1744115433611,-1580.27032935,0.00028979,2]
[357520059,1744115433622,-1580.27032935,0.00028979,2]
[357520060,1744115433633,-250.0,0.00028979,2]
[357520061,1744115433643,-1580.27032935,0.00028979,2]
[357520062,1744115433653,-1580.27032935,0.00028979,2]
[357520063,1744115433664,-1580.27032935,0.00028979,2]
[357520064,1744115433674,-500.0,0.00028979,2]
[357520065,1744115433685,-1580.27032935,0.00028979,2]
[357520066,1744115433695,-1580.27032935,0.00028979,2]
[357520067,1744115433705,-500.0,0.00028979,2]
[357520068,1744115433716,-1580.27032935,0.00028979,2]
[357520069,1744115433726,-1580.27032935,0.00028979,2]
[357520070,1744115433737,-500.0,0.00028979,2]
[357520071,1744115433747,-1580.27032935,0.00028979,2]
[357520072,1744115433757,-500.0,0.00028979,2]
[357520073,1744115433768,-1580.27032935,0.00028979,2]
[357520074,1744115433778,-1580.27032935,0.00028979,2]
[357520075,1744115433788,-500.0,0.00028979,2]
[357520076,1744115433799,-1580.27032935,0.00028979,2]
[357520077,1744115433809,-1580.27032935,0.00028979,2]
[357520078,1744115433820,-1580.27032935,0.00028979,2]
[357520079,1744115433830,-1580.27032935,0.00028979,2]
[357520080,1744115433841,-1580.27032935,0.00028979,2]
[357520081,1744115433852,-1580.27032935,0.00028979,2]
[357520082,1744115433863,-1580.27032935,0.00028979,2]
[357520083,1744115433875,-1580.27032935,0.00028979,2]
[357520084,1744115433887,-1580.27032935,0.00028979,2]
[357520085,1744115433897,-1580.27032935,0.00028979,2]
[357520086,1744115433908,-1580.27032935,0.00028979,2]
[357520087,1744115433918,-1580.27032935,0.00028979,2]
[357520088,1744115433929,-1580.27032935,0.00028979,2]
[357520089,1744115433939,-1580.27032935,0.00028979,2]
[357520090,1744115433949,-1580.27032935,0.00028979,2]
[357520091,1744115433960,-1580.27032935,0.00028979,2]
[357520092,1744115433971,-1580.27032935,0.00028979,2]
[357520093,1744115433981,-1580.27032935,0.00028979,2]
[357520094,1744115433992,-1580.27032935,0.00028979,2]
[357520095,1744115434002,-1580.27032935,0.00028979,2]
[357520096,1744115434013,-1580.27032935,0.00028979,2]
[357520097,1744115434023,-1580.27032935,0.00028979,2]
[357520098,1744115434033,-1580.27032935,0.00028979,2]
[357520099,1744115434043,-1580.27032935,0.00028979,2]
[357520100,1744115434054,-1580.27032935,0.00028979,2]
[357520101,1744115434065,-1580.27032935,0.00028979,2]
[357520102,1744115434076,-500.0,0.00028979,2]
[357520103,1744115434086,-500.0,0.00028979,2]
[357520104,1744115434098,-500.0,0.00028979,2]
[357520105,1744115434109,-500.0,0.00028979,2]
[357520106,1744115434121,-500.0,0.00028979,2]
[357520107,1744115434132,-500.0,0.00028979,2]
[357520108,1744115434143,-500.0,0.00028979,2]
[357520109,1744115434154,-500.0,0.00028979,2]
[357520110,1744115434168,-35640.18165831,0.00028979,2]
[357520111,1744115434178,-500.0,0.00028979,2]
[357520112,1744115434188,-35640.18165831,0.00028979,2]
[357520113,1744115434198,-500.0,0.00028979,2]
[357520114,1744115434208,-500.0,0.00028979,2]
[357520115,1744115434219,-500.0,0.00028979,2]
[357520116,1744115434230,-500.0,0.00028979,2]
[357520117,1744115434240,-35640.18165831,0.00028979,2]
[357520118,1744115434250,-35640.18165831,0.00028979,2]
[357520119,1744115434260,-500.0,0.00028979,2]
[357520120,1744115434270,-35640.18165831,0.00028979,2]
[357520121,1744115434280,-244.98072828,0.00028979,2]
[357520122,1744115434290,-500.0,0.00028979,2]
[357520123,1744115434299,-2055.65449999,0.00028979,2]
[357520124,1744115434592,-33584.52715832,0.00028979,2]
[357520125,1744115434602,-500.0,0.00028979,2]
[357520126,1744115434612,-35640.18165831,0.00028979,2]
[357520127,1744115434625,-500.0,0.00028979,2]